Cogmind - Beta 9.4 *** ADVENTURER MODE // 2020.08.05 @ 17:38:46 Player: Scyralis Result: Self-destructed Performance ------------- Evolutions (4) 2000 Regions Visited (5) 1000 Robots Destroyed (9) 45 Value Destroyed (159) 159 Prototype IDs (1) 20 Alien Tech Used (0) 0 Bonus (0) 0 TOTAL SCORE: 3224 Bonus ------- None Cogmind --------- Core Integrity 850/850 Matter 135/300 Energy 140/140 System Corruption 0% Temperature Cool (0) Movement Core (50) Location -6/Factory Parts ------- > --- POWER (2) -------- Light Deuterium Engine > --- PROPULSION (3) --- (None) > --- UTILITY (8) ------ Coolant Injector Advanced Weight Redist. System Enhanced Optical Array Advanced Sensor Array Improved Terrain Scan Processor Hacking Suite > --- WEAPON (2) ------- (None) > --- INVENTORY (4) ---- Improved Cooling System Compact Battery (116) Improved Signal Interpreter Peak State ------------ > --- POWER ------------ Light Deuterium Engine Light Deuterium Engine > --- PROPULSION ------- Xenon Bombardment Thruster > --- UTILITY ---------- Coolant Injector Advanced Weight Redist. System Enhanced Optical Array Advanced Sensor Array Improved Terrain Scan Processor Maneuvering Thrusters > --- WEAPON ----------- Greatsword > --- INVENTORY -------- Improved Cooling System Transmission Jammer [Rating: 38] Favorites ----------- Power Light Deuterium Engine Engine Light Deuterium Engine Propulsion Flight Unit Wheel Compact Wheel Flight Unit Flight Unit Utility Targeting Computer Device Maneuvering Thrusters Processor Targeting Computer Hackware Hacking Suite Protection Light Armor Plating Weapon Light Assault Rifle Energy Gun Electrolaser Ballistic Gun Light Assault Rifle Launcher Advanced EMP Blaster Slashing Weapon Greatsword Special Melee Weapon Datajack Build | -11 -10 -9 -8 -7 -6 ------- Run | Scr Mat Mat Mat Fac Fac Slots Evolved 8 | . . 2 2 2 2 Power 1 | . . . 1 . . Propulsion 1 | . . . 1 . . Utility 6 | . . 2 . 2 2 Weapon . | . . . . . . Parts Attached 46 | 5 10 8 8 13 2 Power 6 | 1 1 1 1 2 . Engine 6 | 1 1 1 1 2 . Core . | . . . . . . Reactor . | . . . . . . Propulsion 11 | 2 2 5 1 1 . Treads . | . . . . . . Leg . | . . . . . . Wheel 2 | 2 . . . . . Hover . | . . . . . . Flight 9 | . 2 5 1 1 . Utility 17 | . 4 2 3 6 2 Device 9 | . 1 . 2 5 1 Storage . | . . . . . . Processor 6 | . 2 2 1 1 . Hackware 1 | . . . . . 1 Protection 1 | . 1 . . . . Artifact . | . . . . . . Weapon 12 | 2 3 . 3 4 . Energy Gun 1 | . . . 1 . . Energy Cannon . | . . . . . . Ballistic Gun 5 | 2 1 . 2 . . Ballistic Cannon . | . . . . . . Launcher 1 | . . . . 1 . Special Weapon . | . . . . . . Impact Weapon . | . . . . . . Slashing Weapon 3 | . . . . 3 . Piercing Weapon . | . . . . . . Special Melee Weapon 2 | . 2 . . . . Unidentified Prototypes 1 | . . . . 1 . Parts Lost 13 | . . 6 2 2 3 Power 3 | . . 2 . 1 . Propulsion 5 | . . 2 2 . 1 Utility 3 | . . . . 1 2 Weapon 2 | . . 2 . . . Highest Loss Streak 4 | . . 4 2 1 3 Average Slot Usage (%) 69 | . 83 89 46 60 66 Engine 7 | . 14 8 . 8 6 Wheel 1 | . 7 . . . . Flight 13 | . 20 22 9 6 6 Device 13 | . 8 . 8 26 33 Processor 21 | . 4 44 27 15 13 Ballistic Gun 5 | . 16 9 . . . Special Melee Weapon 3 | . 10 4 . . . Naked Turns . | . . . . . . Heaviest Build 18 | 9 12 5 5 18 9 Greatest Support 32 | 32 32 8 8 16 16 Greatest Overweight (x) 1 | . . . 1 1 . Average Overweight (x) . | . . . . . . Largest Inventory Capacity 4 | 4 4 4 4 4 4 Average Capacity 4 | 4 4 4 4 4 4 Most Carried 4 | 2 4 4 3 4 3 Average Carried 1 | . 1 1 1 1 2 Final Capacity 4 | 4 4 4 4 4 4 Final Carried 4 | . 4 1 2 3 3 Class Distribution -------------------- 89% | Mutant 10% | Hacker-Mutant Dominant Class ---------------- Mutant | -10/Materials Mutant | -9/Materials Mutant | -8/Materials Mutant | -7/Factory Hacker-Mutant | -6/Factory Resources | -11 -10 -9 -8 -7 -6 ----------- Run | Scr Mat Mat Mat Fac Fac Matter Collected 528 | 268 111 101 17 31 . Remotely . | . . . . . . Salvage Created 412 | 87 141 105 48 31 . Parts 22 | 3 4 6 6 3 . Haulers Intercepted 1 | . 1 . . . . Recyclers Shooed 2 | . 2 . . . . Parts Field Recycled . | . . . . . . Retrieved Matter . | . . . . . . Parts Self-Destructed . | . . . . . . Prevented . | . . . . . . Kills | -11 -10 -9 -8 -7 -6 ------- Run | Scr Mat Mat Mat Fac Fac Combat Hostiles Destroyed 5 | . . 4 1 . . Guns 5 | . . 4 1 . . Classes Destroyed 5 | 1 1 2 . 1 . Hauler 1 | . 1 . . . . Recycler 2 | 1 1 . . . . Watcher 1 | . . . . 1 . Swarmer 3 | . . 3 . . . Sentry 2 | . . 1 1 . . Best Kill Streak 2 | 1 1 2 1 1 . Combat Bots Only 2 | . . 2 1 . . Max Kills in Single Turn 1 | 1 1 1 1 1 . Gunslinging . | . . . . . . Exploded . | . . . . . . Melee . | . . . . . . Uniques/NPCs Destroyed . | . . . . . . Combat | -11 -10 -9 -8 -7 -6 -------- Run | Scr Mat Mat Mat Fac Fac Damage Taken 932 | . 19 370 292 176 75 Core 312 | . . 119 141 52 . Absorbed by Shields . | . . . . . . Core Remaining (%) 87 | 100 100 70 74 92 . Volleys Fired 62 | 3 21 33 5 . . Largest 2 | 2 2 1 1 . . Hottest 63 | 40 40 20 63 . . Shots Fired 67 | 6 23 33 5 . . Gun 67 | 6 23 33 5 . . Cannon . | . . . . . . Launcher . | . . . . . . Special . | . . . . . . Kinetic 66 | 6 23 33 4 . . Thermal 1 | . . . 1 . . Explosive . | . . . . . . Electromagnetic . | . . . . . . Robot Hit Streak 16 | 4 11 16 12 . . Robot Miss Streak 2 | 1 2 1 1 . . Penetration Max . | . . . . . . Secondary Targets . | . . . . . . Shots Hit Robots 62 | 4 21 31 5 1 . Core Hits 25 | 2 7 10 5 1 . Critical Hits . | . . . . . . Critical Kills . | . . . . . . Critical Parts Destroyed . | . . . . . . Melee Attacks 3 | . 1 . . 2 . Impact . | . . . . . . Slashing 2 | . . . . 2 . Piercing . | . . . . . . Sneak Attacks . | . . . . . . Combat Hostiles . | . . . . . . Follow-up Attacks . | . . . . . . Damage Inflicted 678 | 63 192 243 124 56 . Guns 615 | 63 192 243 117 . . Cannons . | . . . . . . Explosions . | . . . . . . Melee 56 | . . . . 56 . Ramming 7 | . . . 7 . . Kinetic 597 | 63 192 243 99 . . Thermal 18 | . . . 18 . . Explosive . | . . . . . . Electromagnetic . | . . . . . . Impact . | . . . . . . Slashing 56 | . . . . 56 . Piercing . | . . . . . . Highest Corruption . | . . . . . . Average Corruption . | . . . . . . Corruption Purged . | . . . . . . Overload Shots . | . . . . . . Overflow Damage . | . . . . . . Projectiles . | . . . . . . Explosions . | . . . . . . Melee . | . . . . . . Knockbacks 1 | . . . 1 . . Impact 1 | . . . 1 . . Kinetic . | . . . . . . Secondary . | . . . . . . Self-Inflicted Damage 3 | . . . 3 . . Shots . | . . . . . . Rammed 2 | . . . 2 . . Targets Rammed 2 | . . . 2 . . Kicked . | . . . . . . Crushed . | . . . . . . Highest Temperature 10 | . 6 8 3 10 . Average Temperature 3 | . 2 2 2 9 . Received Heat Transfer 426 | . 15 117 198 90 6 Siege Activations . | . . . . . . Robots Corrupted . | . . . . . . Combat Hostiles . | . . . . . . Parts Fried . | . . . . . . Impact Corruptions . | . . . . . . Robots Melted . | . . . . . . Combat Hostiles . | . . . . . . Parts Melted . | . . . . . . Heat Transferred 37 | . . . 37 . . Parts Sabotaged . | . . . . . . Parts Stolen . | . . . . . . Parts Stripped . | . . . . . . Power Chain Reactions . | . . . . . . Missiles Intercepted . | . . . . . . Alert | -11 -10 -9 -8 -7 -6 ------- Run | Scr Mat Mat Mat Fac Fac Peak Influence 259 | 5 48 204 259 143 105 Average Influence 97 | 1 26 103 180 113 83 Maximum Alert Level 1 | . . 1 1 . . Low Security (%) 96 | 100 100 98 83 100 100 Level 1 3 | . . 1 16 . . Level 2 . | . . . . . . Level 3 . | . . . . . . Level 4 . | . . . . . . Level 5 . | . . . . . . High Security . | . . . . . . Max Security . | . . . . . . Squads Dispatched 8 | . . 1 1 2 4 Investigation 8 | . . 1 1 2 4 Extermination . | . . . . . . Reinforcement . | . . . . . . Assault . | . . . . . . Garrison . | . . . . . . Intercept . | . . . . . . Construction Impeded . | . . . . . . Haulers Reinforced . | . . . . . . Stealth | -11 -10 -9 -8 -7 -6 --------- Run | Scr Mat Mat Mat Fac Fac Distress Signals 1 | . . . 1 . . Communications Jammed . | . . . . . . Distress Signals . | . . . . . . Times Spotted 62 | . 6 25 20 9 2 Peak Tracking Total 14 | . 3 14 12 4 1 Tactical Retreats 10 | . 1 3 5 1 . Traps | -11 -10 -9 -8 -7 -6 ------- Run | Scr Mat Mat Mat Fac Fac Traps Triggered 2 | . . 1 . . 1 Indirectly . | . . . . . . Trap Hack Attempts . | . . . . . . Triggered . | . . . . . . Disarmed . | . . . . . . Reprogrammed . | . . . . . . Reused . | . . . . . . Traps Extracted . | . . . . . . Installed . | . . . . . . Triggered . | . . . . . . Machines | -11 -10 -9 -8 -7 -6 ---------- Run | Scr Mat Mat Mat Fac Fac Machines Disabled . | . . . . . . Max in Single Turn . | . . . . . . Machines Sabotaged . | . . . . . . Garrisons Compromised . | . . . . . . Overloaded Fab Kills . | . . . . . . Fab Network Shutdowns . | . . . . . . Hacking | -11 -10 -9 -8 -7 -6 --------- Run | Scr Mat Mat Mat Fac Fac Machines Accessed 15 | . 2 5 2 2 4 Terminals 11 | . 1 5 1 1 3 Fabricators 1 | . . . . . 1 Repair Stations . | . . . . . . Recycling Units 1 | . 1 . . . . Scanalyzers 2 | . . . 1 1 . Garrison Access . | . . . . . . Total Hacks 32 | . 4 11 6 4 7 Successful 10 | . 3 4 1 1 1 Failed 22 | . 1 7 5 3 6 Catastrophic 5 | . . 2 . . 3 Database Lockouts . | . . . . . . Manual 20 | . 2 7 3 4 4 Terminals 24 | . 2 11 3 2 6 Fabricators 1 | . . . . . 1 Repair Stations . | . . . . . . Recycling Units 2 | . 2 . . . . Scanalyzers 5 | . . . 3 2 . Garrison Access . | . . . . . . Terminal Hacks 5 | . 1 4 . . . Robot Analysis 2 | . . 2 . . . Level Access Points 1 | . . 1 . . . Patrol Status 1 | . . 1 . . . Transport Status 1 | . 1 . . . . Fabricator Hacks . | . . . . . . Repair Station Hacks . | . . . . . . Recycling Unit Hacks 1 | . 1 . . . . Retrieve Components 1 | . 1 . . . . Scanalyzer . | . . . . . . Garrison Access Hacks . | . . . . . . Unauthorized Hacks 13 | . 2 . 4 5 2 Terminals 1 | . 1 . . . . Botnet 1 | . 1 . . . . Fabricators 1 | . . . . . 1 Download 1 | . . . . . 1 Repair Stations . | . . . . . . Recycling Units . | . . . . . . Scanalyzers 2 | . . . 1 1 . Extract 2 | . . . 1 1 . Garrison Access . | . . . . . . Data Cores Recovered . | . . . . . . Used . | . . . . . . Hacking Detections 12 | . 1 4 2 2 3 Full Trace Events 6 | . . 1 1 1 3 Feedback Events . | . . . . . . Feedback Blocked . | . . . . . . Robot Schematics Acquired . | . . . . . . Robots Built . | . . . . . . Matter . | . . . . . . Time . | . . . . . . Total Robot Build Rating . | . . . . . . Part Schematics Acquired 11 | . . . 9 1 1 Parts Built . | . . . . . . Matter . | . . . . . . Time . | . . . . . . Total Part Build Rating . | . . . . . . Parts Repaired . | . . . . . . Time . | . . . . . . Parts Recycled . | . . . . . . Recycled Matter . | . . . . . . Retrieved Matter . | . . . . . . Retrieved Components 7 | . 7 . . . . Parts Scanalyzed . | . . . . . . Part Schematics Acquired . | . . . . . . Parts Damaged . | . . . . . . Bothacking | -11 -10 -9 -8 -7 -6 ------------ Run | Scr Mat Mat Mat Fac Fac Used RIF Installer . | . . . . . . Robots Hacked . | . . . . . . Non-combat . | . . . . . . Combat . | . . . . . . Robot Hacks Applied . | . . . . . . Relay Couplers Released . | . . . . . . Robots Rewired . | . . . . . . Allies Hacked . | . . . . . . Hacks Repelled . | . . . . . . Allies | -11 -10 -9 -8 -7 -6 -------- Run | Scr Mat Mat Mat Fac Fac Total Allies . | . . . . . . Largest Group . | . . . . . . Highest-Rated Group . | . . . . . . Highest-Rated Ally . | . . . . . . Total Orders . | . . . . . . Ally Attacks . | . . . . . . Total Damage . | . . . . . . Kills . | . . . . . . Allies Corrupted . | . . . . . . Allies Melted . | . . . . . . Intel | -11 -10 -9 -8 -7 -6 ------- Run | Scr Mat Mat Mat Fac Fac Robot Analysis Total 2 | . . 2 . . . Derelict Logs Recovered . | . . . . . . Drone Launches . | . . . . . . Drone Recoveries . | . . . . . . Exploration | -11 -10 -9 -8 -7 -6 ------------- Run | Scr Mat Mat Mat Fac Fac Turns Passed 972 | 57 203 205 190 244 73 Spaces Moved 1644 | 44 276 345 357 452 170 Core 171 | 12 . . 146 13 . Treads . | . . . . . . Legs . | . . . . . . Wheels 73 | 32 41 . . . . Hover . | . . . . . . Flight 1400 | . 235 345 211 439 170 Fastest Speed 37 | 50 37 37 37 40 40 Average Speed 44 | 86 46 37 44 45 40 Slowest Speed 120 | 100 100 40 100 120 40 Overloaded Moves . | . . . . . . Propulsion Burnouts . | . . . . . . Robots Hopped 30 | . 4 9 10 2 5 Cave-ins Triggered . | . . . . . . Exploration Rate (%) 25 | 3 33 40 52 20 7 Regions Visited 5 Branch Regions . Pre-discovered Areas . | . . . . . . Known Exits Taken 1 | . . 1 . . . Unknown Exits Taken 4 | 1 1 . 1 1 . Scrap Searched . | . . . . . . Spaces Dug 1 | . . . . 1 . Terrain Destroyed 1 | . . . . 1 . Melee 1 | . . . . 1 . Projectile . | . . . . . . AOE . | . . . . . . Actions | -11 -10 -9 -8 -7 -6 --------- Run | Scr Mat Mat Mat Fac Fac Total 1802 | 56 329 386 376 486 169 Wait 11 | . 5 2 2 2 . Move 1583 | 43 268 328 337 447 160 Hop 26 | . 3 7 9 2 5 Pick Up 43 | 5 13 5 6 12 2 Fast Attach . | . . . . . . Attach 41 | 5 9 5 8 12 2 Detach 6 | . 1 . 3 2 . Swap 5 | . 1 3 . 1 . Drop 20 | . 7 3 4 6 . Fire 62 | 3 21 33 5 . . Melee 3 | . 1 . . 2 . Ram 2 | . . . 2 . . Kick . | . . . . . . Crush . | . . . . . . Escape Stasis . | . . . . . . Rewire . | . . . . . . Trap . | . . . . . . Miscellaneous . | . . . . . . Route ------- -11/Scrapyard -10/Materials (discovered 2 exits: *Mat / [*Min]) -9/Materials (discovered 3 exits: *Mat x3) -8/Materials -7/Factory (discovered 2 exits: *Fac / [*Low]) -6/Factory (discovered 1 exit: [*Low]) History --------- Turn | Location | Event 2 | -11/Scrapyard | Met Revision 17 3 | -11/Scrapyard | Discovered new exit (range 14) 58 | -11/Scrapyard | Entered Materials 241 | -10/Materials | Discovered new exit (range 16) 255 | -10/Materials | Discovered new exit (range 12) 261 | -10/Materials | Entered another Materials area 261 | -9/Materials | Evolved 2 slots: Utility x2 302 | -9/Materials | Build established: Mutant 307 | -9/Materials | Identified exit to Materials 466 | -9/Materials | Entered another Materials area 466 | -8/Materials | Evolved 2 slots: Power x1, Propulsion x1 478 | -8/Materials | Lost 4 parts (1p2n1w) 630 | -8/Materials | Discovered new exit (range 15) 656 | -8/Materials | Entered Factory 656 | -7/Factory | Evolved 2 slots: Utility x2 877 | -7/Factory | Discovered new exit (range 22) 891 | -7/Factory | Discovered new exit (range 8) 900 | -7/Factory | Entered another Factory area 900 | -6/Factory | Evolved 2 slots: Utility x2 910 | -6/Factory | Discovered new exit (range 12) 973 | -6/Factory | Self-destructed Last Messages --------------- squad. 00939_ K-01 Serf collects debris. 00942_ Acquired Imp. Signal Interpreter. 00944_ K-01 Serf cleans the Nuclear Reactor. 00951_ Connecting with Terminal... 00951_ ALERT: Suspicious activity at Terminal F019. Dispatching Investigation squad. 00951_ O-24 Administrator: "IFF HANDSHAKE FAILED. SECURING TERMINAL." 00965_ Connecting with Terminal... 00965_ ALERT: Suspicious activity at Terminal F017. Dispatching Investigation squad. 00970_ Connecting with Terminal... 00970_ ALERT: Suspicious activity at Terminal F008. Dispatching Investigation squad. 00971_ K-01 Serf cleans the Subcomponent Replicator. 00972_ Triggered Heavy Explosive Trap. 00972_ An explosion rips through the floor. 00972_ Maneuvering Thrusters destroyed. 00972_ Transmission Jammer destroyed. 00972_ Xenon Bombardment Thruster destroyed. Map ----- +----------------------------------------------------+ | ?????????????????????? ????????#+######## | | ??????????????????????""" """ ????????# ## | | ???????????????????????"" """ ????????# ## ![ | | ????????????????????? """ """ ######### ## ![ | | ???????????????????? ## [% | | ??????????????????? """ ## | | ??????????????????? " " """ ## | | ???????????????????? "Y" """ ##+##### | | ????????????? """ #? | | ????????????? ######## #? | | ????????????? ##?????????? | | ?????????????????################# #??????????? | | ????????????????????#??? ?????# #??????????? | | ????????????????????# ??" ??????# +??????????? | | ????????????????????# """ ??????# ####??????????? | | ????????????????????# """ ??#???# #?????????????? | | ????????????????????# ? #???# #?????????????? | | ????????????????????# """ ? #???# #?????????????? | | ????????????????????? """ ? #???# #?????????????? | | ????????????????????? """ #???# #?????????????? | | ?????????????????????? ????# #?????????????? | | ????? u ############### # ##?### ###???????????? | | ????? #?# #???????????? | | ???? ### #???????????? | | ??????"" T #???????????? | | ??????"" @ ### #???????????? | | ??????"" #?# #???????????? | | ???? ########### #?#######???????????? | | ????????????????????# #???????????????????? | | ????????????????????# k ""#???????????????????? | | ????????????????????#"" ""#???????????????????? | | ????????????????????#"" T"#???????????????????? | | ????????????????????#""" ""#???????????????????? | | ????????????????????#""" ""#???????????????????? | | ????????????????????#""" #???????????????????? | | ????????????????????# #???????????????????? | | ????????????????????# #???????????????????? | | ????????????????????##########???????????????????? | | ?????????????????????????????????????????????????? | | ?????????????????????????????????????????????????? | | ?????????????????????????????????????????????????? | | ?????????????????????????????????????????????????? | | ?????????????????????????????????????????????????? | | ?????????????????????????????????????????????????? | | ?????????????????????????????????????????????????? | | ?????????????????????????????????????????????????? | | ?????????????????????????????????????????????????? | | ?????????????????????????????????????????????????? | | ?????????????????????????????????????????????????? | | ?????????????????????????????????????????????????? | +----------------------------------------------------+ Best States ------------- Heat Dissipation 37 Coolant Potential 65 Energy Generation 23 Energy Capacity 250 Matter Stores 300 Matter Capacity 300 Sight Range 22 Robot Scan Range 16 Terrain Scan Range 20 Terrain Scan Density 110 Additional Mass Support 9 Armor Coverage 150 Resistance: KI 20 Resistance: TH 20 Resistance: EX 20 Resistance: EM 20 Resistance: I 20 Resistance: S 20 Resistance: P 20 Evasion (%) 68 Targeting Accuracy 20 Offensive Hacking 20 Item Schematics ----------------- Salvage Targeting Computer | -8/Materials | Extracted Integration Mediator | -8/Materials | Extracted Spread Laser | -8/Materials | Extracted Imp. Aluminum Leg | -8/Materials | Extracted Hpw. Shotgun | -8/Materials | Extracted Deuterium Engine | -8/Materials | Extracted Katana | -8/Materials | Extracted Assault Cannon | -8/Materials | Extracted Adv. Targeting Computer | -8/Materials | Extracted Hcp. Matter Pod | -7/Factory | Extracted Imp. Heavy Treads | -6/Factory | Downloaded Robot Schematics ------------------ None Fabricated ------------ Nothing Alien Tech Used ----------------- None Achievements -------------- None Challenges ------------ None Game ------ Seed BackupAlloyScrap Manual? 0 Play Time 00:17:03 Cumulative 221.7 hours Start 2020.08.05 @ 17:22:55 End 2020.08.05 @ 17:38:46 Sessions 1 Manual Loads 0 Difficulty Adventurer Special Mode None Game No. 85 Rogue 0 Adventurer 85 Explorer 0 Win Type - Total 1 Types 1/0/0/0/0/0/0 Lore% 33 Gallery% 58 Achievement% 44 Wizard Run 0 Options --------- ASCII 0 Keyboard 0 Movement Numpad Keybinds 0 Fullscreen 0 Font 12/Smallcaps Map View 83x54 Tactical HUD 1 Map Filters NONE Filters NONE Steam X RUN: 2991d7f4-445f-47bf-ab00-464b19d03a62